bitfinex-derivatives/quotes_SOLF0:USTF0_20251125
["timestamp","ask_amount","ask_price","bid_price","bid_amount"]
[1764103280311,5.66232178,137.3,137.28,9.5489]
[1764103280510,5.61295947,137.29,137.28,9.5489]
[1764103281207,5.61295947,137.29,137.28,6.5589]
[1764103281407,5.61295947,137.29,137.27,2.99]
[1764103281709,5.61295947,137.28,137.27,2.99]
[1764103282309,1.12936231,137.3,137.27,9.5494]
[1764103282610,5.60594648,137.29,137.27,9.5494]
[1764103282908,1.12936231,137.3,137.28,6.5589]
[1764103283212,1.12936231,137.3,137.29,1.78609721]
[1764103283417,6.73307632,137.3,137.29,1.78609721]
[1764103283810,5.65307632,137.3,137.29,1.78609721]
[1764103284008,5.65307632,137.3,137.29,2.99]
[1764103285214,5.65307632,137.3,137.28,9.5489]
[1764103285415,0.04936231,137.3,137.28,9.5489]
[1764103285711,1.12936231,137.3,137.29,1.78509308]
[1764103285913,1.08,137.29,137.26,6.5595]
[1764103286102,1.08,137.29,137.25,2.99]
[1764103287305,1.08,137.29,137.27,6.5594]
[1764103287707,1.08,137.29,137.27,9.5494]
[1764103287908,0.04936231,137.3,137.28,9.5489]
[1764103288108,0.04936231,137.3,137.29,1.78407819]
[1764103288415,5.6446792,137.3,137.29,1.78407819]
[1764103291218,5.6446792,137.3,137.29,9.5485]
[1764103291517,0.04936231,137.3,137.29,9.5485]
[1764103297325,1.13,137.37,137.33,9.5464]
[1764103297623,1.13,137.35,137.34,1.77840061]
[1764103297814,5.58935698,137.35,137.34,1.77840061]
[1764103298009,5.58935698,137.35,137.34,4.76840061]
[1764103298223,5.58935698,137.35,137.34,2.99]
[1764103298723,5.58935698,137.35,137.33,6.6122519]
[1764103298724,6.71935698,137.35,137.33,6.6122519]
[1764103298925,1.13,137.35,137.34,1.77888652]
[1764103299222,1.13,137.34,137.33,0.0558519]
[1764103299424,6.72091657,137.34,137.33,0.0558519]
[1764103300823,5.59091657,137.34,137.33,0.0558519]
[1764103301027,5.59091657,137.34,137.33,3.0458519]
[1764103301424,1.13,137.41,137.36,2.99]
[1764103301625,26.19,137.43,137.39,2.99]
[1764103301826,31.6772196,137.43,137.39,2.99]
[1764103302015,26.19,137.43,137.39,2.99]
[1764103302217,6.6572196,137.46,137.41,104.9188]
[1764103302422,0.05090833,137.45,137.44,2.99]
[1764103302617,0.04837679,137.46,137.44,2.99]
[1764103302821,0.04837679,137.46,137.45,1.77643288]
[1764103303021,0.04837679,137.46,137.44,9.5412]
[1764103303628,0.04837679,137.46,137.45,1.77558966]
[1764103305532,1.21837679,137.46,137.45,1.77558966]
[1764103305735,1.21837679,137.46,137.43,0.05270091]
[1764103305922,1.21837679,137.46,137.44,1.77503913]
[1764103306231,0.04837679,137.46,137.45,1.77503913]
[1764103306616,0.04837679,137.46,137.44,2.99]
[1764103306821,0.04837679,137.46,137.45,1.7737696]
[1764103307332,1.21837679,137.46,137.43,2.91270091]
[1764103307534,1.21837679,137.46,137.44,1.7738126]
[1764103307831,1.21837679,137.46,137.45,1.7738126]
[1764103308130,1.21837679,137.46,137.43,2.91270091]
[1764103308333,1.21837679,137.46,137.45,1.77350781]
[1764103310828,0.04837679,137.46,137.45,4.63350781]
[1764103311035,1.17,137.51,137.43,0.05270091]
[1764103311036,1.22,137.5,137.46,2.86]
[1764103311230,1.22,137.5,137.47,1.76984844]
[1764103311934,1.27112552,137.5,137.47,1.81945619]
[1764103312137,1.27112552,137.5,137.47,0.04960775]
[1764103312327,1.27112552,137.5,137.47,1.81840953]
[1764103312528,1.27112552,137.5,137.47,0.04960775]
[1764103312723,1.27112552,137.5,137.47,1.81734665]
[1764103312923,26.27112552,137.5,137.47,0.04960775]
[1764103313125,1.22,137.49,137.47,0.04960775]
[1764103313336,5.49772023,137.48,137.47,0.04960775]
[1764103313738,5.49772023,137.48,137.47,2.90960775]
[1764103313930,5.49772023,137.49,137.47,2.90960775]
[1764103314339,1.22,137.49,137.47,0.04960775]
[1764103315144,0.05112552,137.5,137.49,2.86]
[1764103318137,0.05112552,137.5,137.47,2.90960775]
[1764103318333,0.05112552,137.5,137.49,4.62247156]
[1764103318534,0.05112552,137.5,137.49,2.86]
[1764103319235,0.05112552,137.5,137.48,2.86]
[1764103319438,0.05112552,137.5,137.49,1.76052489]
[1764103324346,0.05112552,137.5,137.49,4.72052489]
[1764103324646,0.05112552,137.5,137.49,2.96]
[1764103325249,1.27112552,137.5,137.47,0.04960775]
[1764103326244,5.44019385,137.5,137.47,0.04960775]
[1764103326451,1.22,137.49,137.47,0.04960775]
[1764103329351,1.22,137.48,137.47,0.04960775]
[1764103329645,1.22,137.47,137.41,2.96]
[1764103329952,1.22,137.45,137.43,1.76482889]
[1764103330852,1.27571912,137.45,137.43,1.81173392]
[1764103331039,1.27571912,137.45,137.43,0.04690503]
[1764103331242,1.27571912,137.45,137.43,1.8128695]
[1764103331444,1.27571912,137.45,137.43,0.04690503]
[1764103331644,1.27571912,137.45,137.43,1.81346557]
[1764103331952,1.27571912,137.45,137.43,0.04690503]
[1764103332150,0.05571912,137.45,137.43,1.81380559]
[1764103332348,0.05571912,137.45,137.44,2.96]
[1764103335351,5.54566352,137.45,137.44,2.96]
[1764103335947,5.54813051,137.45,137.44,2.96]
[1764103336247,5.54813051,137.45,137.43,3.00690503]
[1764103336449,1.27571912,137.45,137.44,1.77144232]
[1764103336655,6.77186483,137.45,137.44,1.77144232]
[1764103338352,6.77186483,137.45,137.43,0.04690503]
[1764103338656,6.71614571,137.44,137.43,0.04690503]
[1764103339256,5.49614571,137.44,137.43,3.02690503]
[1764103339462,30.47614571,137.44,137.43,3.02690503]
[1764103340058,30.47614571,137.44,137.43,0.04690503]
[1764103341155,35.94596363,137.44,137.43,0.04690503]
[1764103342360,10.96596363,137.44,137.43,0.04690503]
[1764103346057,10.96596363,137.44,137.43,9.57870503]
[1764103349266,5.49614571,137.44,137.43,9.57870503]
[1764103352468,4.571e-05,137.44,137.43,9.57870503]
[1764103355272,0.05571912,137.45,137.44,9.5313]
[1764103356465,6.75736834,137.51,137.45,2.98]
[1764103356674,7.97736834,137.54,137.51,2.98]
[1764103356969,1.22,137.54,137.52,1.78360164]
[1764103357172,1.22,137.54,137.52,8.33070164]
[1764103357363,1.22,137.54,137.52,6.5471]
[1764103357672,1.27189688,137.54,137.52,6.59661417]
[1764103359176,1.27189688,137.54,137.52,0.04951417]
[1764103360186,1.27189688,137.54,137.47,2.98]
[1764103360361,1.22,137.53,137.49,1.7809516]
[1764103361173,1.22,137.51,137.5,0.05240094]
[1764103361472,26.2,137.51,137.5,0.05240094]
[1764103361971,1.22,137.51,137.5,0.05240094]
[1764103362170,1.27179449,137.52,137.5,0.05240094]
[1764103362974,0.05179449,137.52,137.5,3.03240094]
[1764103364475,5.46259582,137.51,137.5,3.03240094]
[1764103368569,5.47500245,137.56,137.5,3.03240094]
[1764103368869,24.96,137.58,137.55,3.11]
[1764103369078,24.96,137.58,137.57,4.88810491]
[1764103369376,30.41079901,137.58,137.57,3.11]
[1764103369578,5.45079901,137.58,137.56,3.15778236]
[1764103369882,1.32154975,137.59,137.56,3.15778236]
[1764103370073,1.32154975,137.59,137.58,1.77621726]
[1764103370268,6.76856147,137.59,137.58,1.77621726]
[1764103374183,1.32154975,137.59,137.58,1.77621726]
[1764103375287,1.32154975,137.59,137.57,1.77621726]
[1764103375481,1.32154975,137.59,137.56,3.15778236]
[1764103375785,1.32154975,137.59,137.57,1.77020301]
[1764103375987,0.05154975,137.59,137.58,1.77020301]
[1764103376286,0.05154975,137.59,137.58,3.11]
[1764103376778,0.05154975,137.59,137.56,3.15778236]
[1764103376984,0.05154975,137.59,137.58,1.76935311]
[1764103377485,1.32154975,137.59,137.57,1.76935311]
[1764103377686,1.32154975,137.59,137.56,3.15778236]
[1764103377883,1.32154975,137.59,137.57,1.76932989]
[1764103378084,6.70145622,137.59,137.57,1.76932989]
[1764103378286,1.27,137.58,137.57,1.76932989]
[1764103378981,1.27,137.58,137.56,0.04778236]
[1764103379181,1.27,137.58,137.57,1.76887139]
[1764103379383,6.70145622,137.59,137.57,1.76887139]
[1764103379886,1.32154975,137.59,137.57,1.76887139]
[1764103380088,6.70145622,137.59,137.57,1.76887139]
[1764103381287,5.43145622,137.59,137.57,4.92887139]
[1764103381479,0.05154975,137.59,137.58,4.92790075]
[1764103381786,0.05154975,137.59,137.58,3.16]
[1764103382383,1.30154975,137.59,137.56,3.20778236]
[1764103382589,1.30154975,137.59,137.58,1.76797554]
[1764103382788,0.05154975,137.59,137.58,4.92797554]
[1764103382990,0.05154975,137.59,137.58,3.16]
[1764103385597,2.71730204,137.59,137.57,3.16]
[1764103386689,1.25,137.58,137.56,0.04778236]
[1764103386894,2.66575229,137.57,137.56,0.04778236]
[1764103388382,24.96,137.58,137.56,3.20778236]
[1764103388583,24.96,137.58,137.57,4.92853699]
[1764103388793,0.05154975,137.59,137.57,3.16]
[1764103388995,0.05154975,137.59,137.58,4.92832236]
[1764103389197,0.05154975,137.59,137.58,3.16]
[1764103389893,5.37764878,137.63,137.58,3.16]
[1764103390096,2.66575229,137.62,137.61,1.76733353]
[1764103390593,3.96575229,137.62,137.6,1.76733353]
[1764103390789,3.96575229,137.62,137.58,3.16]
[1764103391096,3.96575229,137.62,137.61,1.76849488]
[1764103391989,2.66575229,137.62,137.61,1.76849488]
[1764103392983,0.04711559,137.63,137.61,4.92849488]
[1764103393188,24.94,137.62,137.61,3.16]
[1764103393388,24.94,137.62,137.6,3.16]
[1764103393589,24.94,137.62,137.61,1.76913388]
[1764103396584,3.96575229,137.62,137.61,1.76913388]
[1764103396784,2.66575229,137.62,137.61,3.16]
[1764103397099,28.95286788,137.63,137.6,3.16]
[1764103397295,28.95286788,137.63,137.61,1.77131501]
[1764103398092,34.40151595,137.63,137.61,1.77131501]
[1764103398292,2.71286788,137.63,137.62,3.13]
[1764103398594,24.98711559,137.63,137.62,3.13]
[1764103398789,24.98711559,137.63,137.6,3.13]
[1764103398985,24.98711559,137.63,137.61,1.77158363]
[1764103399391,24.98711559,137.63,137.61,4.90158363]
[1764103399696,26.30711559,137.63,137.6,9.6737]
[1764103399898,26.30711559,137.63,137.61,1.77233248]
[1764103400100,31.76005059,137.63,137.61,1.77233248]
[1764103400289,26.30711559,137.63,137.61,1.77233248]
[1764103400489,6.82005059,137.63,137.61,1.77233248]
[1764103400693,1.36711559,137.63,137.61,1.77233248]
[1764103400998,6.82005059,137.63,137.61,4.90233248]
[1764103401198,1.36711559,137.63,137.61,3.13]
[1764103402095,5.36128663,137.62,137.61,3.13]
[1764103404202,5.36128663,137.62,137.6,9.6737]
[1764103404396,5.36128663,137.62,137.61,1.7746472]
[1764103404397,1.32,137.62,137.61,1.7746472]
[1764103404699,1.32,137.61,137.59,0.05402908]
[1764103404902,1.32,137.61,137.6,1.7752131]
[1764103405097,5.35225292,137.61,137.6,4.9052131]
[1764103405400,0.04711559,137.63,137.6,3.13]
[1764103406206,0.04711559,137.63,137.62,9.6728]
[1764103407195,5.40210394,137.63,137.62,9.6728]
[1764103407701,3.98575229,137.67,137.62,9.6728]
[1764103407702,2.88,137.69,137.65,6.5413]
[1764103407898,5.45874794,137.68,137.66,1.77360926]
[1764103408093,2.88,137.69,137.66,4.90360926]
[1764103408293,5.46077321,137.68,137.66,9.6709]
[1764103408495,2.88,137.69,137.66,3.13]
[1764103408697,5.4590286,137.68,137.66,3.18195072]
[1764103408899,2.93316555,137.69,137.66,3.18195072]
[1764103409206,5.4590286,137.68,137.66,3.18195072]
[1764103409396,2.93316555,137.69,137.66,3.18195072]
[1764103409699,5.45974676,137.68,137.66,3.18195072]
[1764103409907,2.93316555,137.69,137.66,3.18195072]
[1764103410106,5.45974676,137.68,137.66,3.18195072]
[1764103410300,8.34130749,137.67,137.66,0.05195072]
[1764103410694,11.00705978,137.67,137.66,0.05195072]
[1764103416599,2.88,137.66,137.59,3.13]
[1764103416804,5.54575229,137.62,137.61,1.77856461]
[1764103417002,2.88,137.61,137.56,3.13]
[1764103417203,2.88,137.61,137.59,1.78001264]
[1764103417704,2.9289501,137.61,137.59,1.83389964]
[1764103418012,11.01914584,137.6,137.59,0.053887]
[1764103419604,16.31514535,137.6,137.59,0.053887]
[1764103420911,10.8417518,137.6,137.59,0.053887]
[1764103421210,16.31549619,137.6,137.59,0.053887]
[1764103421905,16.31549619,137.6,137.54,9.6764]
[1764103421906,2.88,137.59,137.54,9.6764]
[1764103422212,2.88,137.57,137.54,9.6764]
[1764103423015,2.93559236,137.57,137.54,9.72255969]
[1764103423309,2.93559236,137.57,137.55,3.13]
[1764103428514,2.93559236,137.57,137.55,9.6761]
[1764103428709,2.93559236,137.57,137.55,3.13]
[1764103428909,2.93559236,137.57,137.54,2.93615969]
[1764103429107,2.93559236,137.57,137.56,1.78126372]
[1764103429313,8.22986411,137.57,137.56,1.78126372]
[1764103430113,5.34986411,137.57,137.56,4.67126372]
[1764103430423,0.05559236,137.57,137.56,2.89]
[1764103430924,5.47160586,137.61,137.58,2.89]
[1764103431106,5.29209893,137.6,137.58,2.89]
[1764103431310,5.29209893,137.59,137.58,2.89]
[1764103432420,5.29209893,137.59,137.58,9.4347]
[1764103433620,0.05135749,137.6,137.59,9.4342]
[1764103433820,6.77385835,137.65,137.59,9.4342]
[1764103433821,6.77385835,137.66,137.6,2.89]
[1764103434122,6.77385835,137.66,137.59,101.7937]
[1764103434123,10.75255297,137.65,137.63,4.66999447]
[1764103434323,5.28190518,137.64,137.63,2.89]
[1764103434712,5.28190518,137.64,137.63,9.4322]
[1764103434910,5.28190518,137.64,137.63,6.5422]
[1764103435225,8.20190518,137.64,137.63,6.5422]
[1764103435722,5.28190518,137.64,137.63,9.4322]
[1764103436327,5.28190518,137.64,137.63,6.5422]
[1764103436922,5.28190518,137.64,137.62,0.05023304]
[1764103437129,5.28190518,137.63,137.62,2.94023304]
[1764103441129,0.05566139,137.65,137.64,3.11]
[1764103443941,9.78385835,137.73,137.66,3.11]
[1764103444134,33.41259747,137.72,137.68,4.88653751]
[1764103444334,5.46259747,137.71,137.68,3.11]
[1764103444534,5.46259747,137.7,137.68,3.11]
[1764103444729,3.01,137.7,137.63,114.8527]
[1764103444934,3.06109686,137.68,137.66,1.7760215]
[1764103445136,0.05378552,137.68,137.66,4.93853464]
[1764103445337,0.05378552,137.68,137.67,4.88608633]
[1764103445543,0.05378552,137.68,137.67,3.11]
[1764103445846,0.05378552,137.68,137.66,9.70301314]
[1764103446033,0.05378552,137.68,137.67,1.77600749]
[1764103446532,0.05378552,137.68,137.67,3.11]
[1764103446937,3.06378552,137.68,137.66,6.59301314]
[1764103447348,5.46259747,137.67,137.66,0.05251314]
[1764103447536,3.01,137.67,137.66,0.05251314]
[1764103452440,3.06378552,137.68,137.66,0.05251314]
[1764103452644,27.98378552,137.68,137.66,0.05251314]
[1764103452845,3.01,137.67,137.66,0.05251314]
[1764103453034,8.20925095,137.67,137.66,0.05251314]
[1764103454148,8.20911426,137.67,137.66,0.05251314]
[1764103455939,13.67171173,137.67,137.6,3.11]
[1764103456139,3.01,137.65,137.64,1.77658879]
[1764103456340,3.01,137.64,137.63,1.77658879]
[1764103456539,3.01,137.64,137.58,7.27269456]
[1764103456540,8.21169538,137.64,137.62,1.77658879]
[1764103456740,3.01,137.64,137.62,1.77658879]
[1764103457140,3.06533232,137.64,137.62,1.83214871]
[1764103457342,3.06533232,137.64,137.62,0.05555992]
[1764103457542,3.06533232,137.64,137.62,1.83303961]
[1764103457743,3.06533232,137.64,137.62,0.05555992]
[1764103457946,3.06533232,137.64,137.62,1.83303961]
[1764103458140,3.06533232,137.64,137.62,0.05555992]
[1764103458341,3.06533232,137.64,137.62,8.37574077]
[1764103458542,3.06533232,137.64,137.62,6.59825992]
[1764103459750,3.06533232,137.64,137.62,0.05555992]
[1764103459946,8.16267653,137.63,137.62,0.05555992]
[1764103460142,13.625274,137.63,137.62,0.05555992]
[1764103460342,8.16267653,137.63,137.62,0.05555992]
[1764103460853,2.96,137.62,137.54,2.89]
[1764103461046,2.96,137.6,137.58,1.77973869]
[1764103461239,8.16498874,137.59,137.58,1.77973869]
[1764103463251,33.08498874,137.59,137.58,1.77973869]
[1764103464752,2.96,137.58,137.57,0.0474545]
[1764103466746,8.14466325,137.58,137.57,0.0474545]
[1764103467341,2.96,137.57,137.51,2.89]
[1764103467657,2.96,137.55,137.54,1.78122976]
[1764103467954,2.96,137.54,137.53,1.78122976]
[1764103468250,8.14610425,137.54,137.53,1.78122976]
[1764103468452,2.96,137.54,137.53,1.78122976]
[1764103468753,8.14610425,137.54,137.53,1.78122976]
[1764103469251,2.96,137.54,137.53,1.78122976]
[1764103473448,2.96,137.53,137.45,2.89]
[1764103473653,2.96,137.51,137.45,2.89]
[1764103474347,2.96,137.51,137.5,1.77893049]
[1764103474541,2.96,137.51,137.47,2.93802862]
[1764103474754,3.00666837,137.5,137.47,2.93802862]
[1764103474955,3.00666837,137.5,137.47,0.04802862]
[1764103475946,27.94666837,137.5,137.47,2.93802862]
[1764103476253,2.96,137.49,137.47,0.04802862]
[1764103479959,0.04666837,137.5,137.48,2.89]
[1764103482351,0.04666837,137.5,137.49,2.89]
[1764103483148,0.04666837,137.5,137.48,9.4394]
[1764103484562,0.04666837,137.5,137.49,2.89]
[1764103497270,0.04666837,137.5,137.48,9.6394]
[1764103497472,2.99666837,137.5,137.48,9.6394]
[1764103498178,0.04666837,137.5,137.48,9.6394]
[1764103499673,0.04666837,137.5,137.49,1.78061912]
[1764103499674,3.05666837,137.5,137.49,1.78061912]
[1764103499874,3.01,137.49,137.47,0.04802862]
[1764103500070,3.01,137.49,137.48,1.78104938]
[1764103500263,24.98666837,137.5,137.49,2.87]
[1764103500468,30.24135511,137.5,137.49,2.87]
[1764103500669,30.24135511,137.5,137.48,2.87]
[1764103500868,0.04666837,137.5,137.49,4.65177666]
[1764103501070,0.04666837,137.5,137.49,2.87]
[1764103501273,8.31382892,137.5,137.47,0.04802862]
[1764103501472,2.66,137.47,137.42,2.87]
[1764103501673,2.66,137.45,137.42,2.87]
[1764103502064,2.66,137.43,137.39,2.87]
[1764103502572,24.94,137.46,137.4,0.05592895]
[1764103502573,2.66,137.41,137.4,0.05592895]
[1764103502873,13.3961873,137.41,137.4,1.32655952]
[1764103503075,2.66,137.41,137.4,1.32655952]
[1764103503274,5.26119467,137.41,137.36,2.87]
[1764103503478,24.94,137.42,137.36,2.87]
[1764103503667,0.04943531,137.4,137.36,2.87]
[1764103503864,0.04943531,137.4,137.38,2.87]
[1764103504065,2.66,137.39,137.33,2.87]
[1764103504268,10.7344605,137.38,137.36,1.7902335]
[1764103504479,5.47047907,137.39,137.36,4.6602335]
[1764103504780,5.25936617,137.38,137.37,1.7902335]
[1764103504970,5.47047907,137.39,137.38,2.87]
[1764103505172,0.04943531,137.4,137.38,2.87]
[1764103505173,0.05367828,137.4,137.38,2.87]
[1764103507181,0.05367828,137.4,137.39,2.87]
[1764103508881,10.71413021,137.45,137.41,2.87]
[1764103509076,10.71369798,137.44,137.42,4.6526662]
[1764103509279,10.71229913,137.46,137.43,4.6526662]
[1764103509481,5.24949399,137.45,137.44,1.7826662]
[1764103509675,8.12272086,137.46,137.44,1.7826662]
[1764103509876,5.24961173,137.45,137.44,1.83521626]
[1764103510081,8.1691483,137.46,137.44,0.05255006]
[1764103510278,2.70668254,137.46,137.44,1.835147]
[1764103510481,8.17029433,137.46,137.44,0.05255006]
[1764103510671,8.17029433,137.46,137.44,1.83534464]
[1764103510877,10.71482671,137.45,137.44,0.05255006]
[1764103511876,5.25121492,137.45,137.44,0.05255006]
[1764103513076,7.91121492,137.45,137.44,0.05255006]
[1764103513273,5.51261515,137.46,137.44,2.92255006]
[1764103513478,0.04668254,137.46,137.45,5.53594741]
[1764103513782,0.04668254,137.46,137.45,2.87]
[1764103514674,2.66,137.45,137.44,0.05255006]
[1764103514983,13.37753788,137.45,137.44,0.05255006]
[1764103515280,38.33753788,137.45,137.44,0.05255006]
[1764103518987,2.61,137.44,137.36,3.12]
[1764103519186,10.71753788,137.43,137.41,3.12]
[1764103519385,8.13164961,137.46,137.42,1.78604516]
[1764103519590,7.86108356,137.45,137.43,1.78604516]
[1764103519780,9.00982445,137.51,137.39,2.66594741]
[1764103519781,5.24943525,137.47,137.44,4.90604516]
[1764103520088,0.04941445,137.47,137.45,1.78604516]
[1764103520286,0.04941445,137.47,137.44,3.12]
[1764103520287,2.65941445,137.47,137.44,3.12]
[1764103520488,7.90832945,137.47,137.45,1.78328613]
[1764103521082,0.04941445,137.47,137.45,1.78328613]
[1764103522883,0.04941445,137.47,137.45,4.90328613]
[1764103523087,0.04941445,137.47,137.45,3.12]
[1764103523394,5.29449758,137.47,137.45,3.12]
[1764103524597,0.04941445,137.47,137.45,3.12]
[1764103524889,5.29449758,137.47,137.45,3.12]
[1764103525090,0.04941445,137.47,137.45,3.12]
[1764103525394,0.04941445,137.47,137.46,4.90324565]
[1764103525693,0.04941445,137.47,137.46,3.12]
[1764103526985,0.04941445,137.47,137.44,3.12]
[1764103527181,0.04941445,137.47,137.46,1.78297196]
[1764103527392,0.04941445,137.47,137.44,3.12]
[1764103527785,2.65941445,137.47,137.45,1.78360907]
[1764103527981,2.65941445,137.47,137.46,1.78360907]
[1764103528298,0.04941445,137.47,137.44,3.12]
[1764103528598,0.04941445,137.47,137.46,1.78351836]
[1764103529586,0.04941445,137.47,137.46,3.12]
[1764103530889,0.04941445,137.47,137.44,6.5513]
[1764103531086,5.29781355,137.47,137.45,1.78367704]
[1764103531287,0.04941445,137.47,137.45,1.78367704]
[1764103531483,0.04941445,137.47,137.45,4.90367704]
[1764103531688,5.29781355,137.47,137.45,3.12]
[1764103531889,0.04941445,137.47,137.45,3.12]
[1764103533590,2.65941445,137.47,137.41,3.12]
[1764103533792,2.61,137.45,137.43,1.78554487]
[1764103533994,17.08110268,137.44,137.38,3.12]
[1764103534193,2.65923628,137.42,137.41,1.78683318]
[1764103534392,7.91259155,137.42,137.41,1.78683318]
[1764103534594,5.30259155,137.42,137.41,1.78683318]
[1764103534795,7.91259155,137.42,137.41,1.78683318]
[1764103534995,5.30259155,137.42,137.41,1.78683318]
[1764103535592,7.91259155,137.42,137.41,1.78683318]
[1764103535800,5.30259155,137.42,137.41,4.90683318]
[1764103536095,0.04923628,137.42,137.38,3.12]
[1764103536289,0.04923628,137.42,137.41,1.78722896]
[1764103536503,5.30710005,137.42,137.41,1.78722896]
[1764103536901,0.04923628,137.42,137.41,1.78722896]
[1764103537105,0.04923628,137.42,137.41,4.90722896]
[1764103537309,0.04923628,137.42,137.41,3.12]
[1764103539003,24.98,137.45,137.43,3.12]
[1764103539201,24.98,137.45,137.44,1.78751352]
[1764103539399,30.24106812,137.45,137.44,1.78751352]
[1764103540889,30.24106812,137.45,137.43,3.17185517]
[1764103541090,13.40749302,137.44,137.43,0.05185517]
[1764103541298,10.74749302,137.44,137.43,0.05185517]
[1764103541598,30.24131022,137.44,137.43,0.05185517]
[1764103541795,32.90131022,137.44,137.43,0.05185517]
[1764103541994,38.39002903,137.44,137.43,0.05185517]
[1764103543708,35.73002903,137.44,137.43,0.05185517]
[1764103543902,30.24131022,137.44,137.43,0.05185517]
[1764103544202,35.73002903,137.44,137.43,0.05185517]
[1764103545100,10.75002903,137.44,137.43,0.05185517]
[1764103545304,5.26131022,137.44,137.43,0.05185517]
[1764103546003,13.4155662,137.44,137.43,0.05185517]
[1764103546392,38.3955662,137.44,137.43,0.05185517]
[1764103546596,13.4155662,137.44,137.43,0.05185517]
[1764103546905,10.7555662,137.44,137.43,0.05185517]
[1764103548309,10.7555662,137.44,137.43,3.21185517]
[1764103551910,10.7555662,137.44,137.43,0.05185517]
[1764103556211,13.4155662,137.44,137.43,0.05185517]
[1764103560333,10.7555662,137.44,137.43,0.05185517]
[1764103560534,13.4155662,137.44,137.43,0.05185517]
[1764103561128,5.26131022,137.44,137.43,2.95185517]
[1764103561326,9.43385835,137.53,137.46,2.9]
[1764103561531,2.71,137.51,137.49,1.79089405]
[1764103561733,8.209193,137.5,137.48,1.79089405]
[1764103561936,5.499193,137.49,137.48,4.69089405]
[1764103562137,27.67,137.51,137.48,2.9]
[1764103562336,5.49919083,137.5,137.49,1.79117641]
[1764103562640,5.49919083,137.5,137.49,4.69117641]
[1764103562840,9.00982445,137.55,137.48,0.05011423]
[1764103562841,9.48385835,137.57,137.5,2.9]
[1764103563041,2.76,137.55,137.53,1.78809188]
[1764103563338,5.49653373,137.54,137.53,1.78809188]
[1764103564333,2.81250769,137.55,137.53,1.78809188]
[1764103565532,8.29624052,137.55,137.53,1.78809188]
[1764103565734,2.81250769,137.55,137.53,1.78809188]
[1764103565934,8.29624052,137.55,137.53,1.78809188]
[1764103566134,2.81250769,137.55,137.53,1.78809188]
[1764103566334,5.53624052,137.55,137.53,11.23509188]
[1764103566533,0.05250769,137.55,137.54,1.78809188]
[1764103566735,2.76,137.61,137.55,2.9]
[1764103566938,2.81,137.59,137.57,1.78096851]
[1764103567244,5.47926534,137.6,137.52,2.9]
[1764103567245,8.28926534,137.58,137.52,2.9]
[1764103567437,2.81,137.57,137.55,1.78051514]
[1764103567939,5.47926534,137.6,137.57,2.9]
[1764103568132,6.534e-05,137.66,137.6,104.6891]
[1764103568332,2.86,137.67,137.63,4.67707845]
[1764103568530,6.77385835,137.7,137.64,2.9]
[1764103568531,9.63385835,137.7,137.64,2.9]
[1764103568735,2.86,137.69,137.64,2.9]
[1764103568936,9.63385835,137.72,137.65,4.67273963]
[1764103569138,27.86,137.72,137.66,4.67273963]
[1764103569455,0.05174337,137.7,137.68,2.9]
[1764103569746,0.05004334,137.7,137.69,4.67273963]
[1764103569939,0.05004334,137.7,137.69,2.9]
[1764103570342,2.91004334,137.7,137.68,0.0463123]
[1764103570544,2.91004334,137.7,137.69,1.76321296]
[1764103570844,0.05004334,137.7,137.68,0.0463123]
[1764103571448,0.05004334,137.7,137.69,1.75978855]
[1764103571751,2.91004334,137.7,137.68,0.0463123]
[1764103573243,27.84,137.69,137.68,0.0463123]
[1764103573845,2.86,137.69,137.68,0.0463123]
[1764103574054,27.84,137.69,137.68,0.0463123]
[1764103574651,2.86,137.69,137.68,0.0463123]
[1764103574950,27.84,137.69,137.68,0.0463123]
[1764103577553,2.85,137.67,137.6,3.11]
[1764103577850,2.85,137.67,137.64,1.75210351]
[1764103578041,2.85,137.65,137.57,3.11]
[1764103578242,2.85,137.63,137.57,3.11]
[1764103578455,24.98,137.65,137.57,3.11]
[1764103578642,0.05148557,137.62,137.61,4.86261436]
[1764103578844,0.05148557,137.62,137.6,0.05405199]
[1764103579150,2.90148557,137.62,137.61,1.75261487]
[1764103580552,0.05148557,137.62,137.61,4.86261487]
[1764103580852,24.98,137.67,137.62,3.11]
[1764103581053,24.98,137.67,137.65,1.75081798]